{"text_format":"3","workbook":"xlsx","n_sheets":4,"sheets":["Начало","ПАРАМЕТРИ НА ПРОЕКТИ","ПОДРОБНОСТИ ЗА ПРОЕКТИ","ОБЩИ СУМИ ЗА ПРОЕКТИТЕ"],"not_rendered":{"charts":2,"defined_names":3,"pivot_tables":1},"read":"whole","date_system":"1900"}

{"sheet":"Начало","index":0,"n_rows":8,"n_cols":2,"rows_kept":8}
[null,"ЗА ТОЗИ ШАБЛОН"]
[]
[null,"Използвайте тази работна книга, за да проследявате параметри на проекти, подробности за проекти и общите суми по време на планиране на проекти за юридически фирми."]
[null,"Попълнете име на фирма в работния лист \"Параметри на проекти\", и то се актуализира автоматично в другите работни листове."]
[null,"Въведете информация в работния лист \"Параметри на проекти\", за да актуализирате колонните диаграми, и в работния лист \"Подробности за проекти\". Обобщената таблица в работния лист \"Общи суми за проектите\" се актуализира автоматично."]
[null,"Забележка:  "]
[null,"Допълнителни инструкции са предоставени в колона A на всеки работен лист. Този текст е скрит нарочно. За да премахнете текста, изберете колона А, след което изберете ИЗТРИВАНЕ. За да покажете текст, изберете колона A, след което променете цвета на шрифта."]
[null,"За да научите повече за таблиците в работните листове, натиснете SHIFT и след това F10 в таблица, изберете опцията ТАБЛИЦА, след което изберете АЛТЕРНАТИВЕН ТЕКСТ. За обобщената таблица в работния лист \"Общи суми за проектите\" натиснете SHIFT и след това F10 в таблица, изберете ОПЦИИ ЗА ОБОБЩЕНА ТАБЛИЦА, след което изберете раздела АЛТЕРНАТИВЕН ТЕКСТ."]

{"sheet":"ПАРАМЕТРИ НА ПРОЕКТИ","index":1,"n_rows":19,"n_cols":9,"rows_kept":19}
["В този работен лист създайте параметри на проекти. Въведете име на фирма в клетката вдясно. В клетките в тази колона има полезни инструкции.","Име на фирма"]
["Заглавието на този работен лист е в клетката вдясно.","Планиране на проекти за юридически фирми"]
["Съобщението за поверителност е в клетка вдясно.",{"$f":"\"Поверително за \"&B1","v":"Поверително за Име на фирма"}]
["Съветът е в клетката вдясно.","Оцветените клетки се изчисляват автоматично. Не трябва да въвеждате нищо в тях."]
["Въведете подробности в таблицата \"Параметри\", като започнете от клетката вдясно. Следващата инструкция е в клетка A12.","ТИП ПРОЕКТ","ОБЩ ПАРТНЬОР","БИЗНЕС ЮРИСТ","ЗАЩИТНИК ПО ДЕЛО","ЮРИСТ ПО ИНТЕЛЕКТУАЛНА СОБСТВЕНОСТ","ЮРИСТ ПО НЕСЪСТОЯТЕЛНОСТ","АДМИНИСТРАТИВЕН ПЕРСОНАЛ","ОБЩО"]
[null,"Обединяване на бизнес",{"v":0.1,"d":"10%"},{"v":0.4,"d":"40%"},{"v":0,"d":"0%"},{"v":0,"d":"0%"},{"v":0,"d":"0%"},{"v":0.5,"d":"50%"},{"$f":"SUM(Параметри[[#This Row],[ОБЩ ПАРТНЬОР]:[АДМИНИСТРАТИВЕН ПЕРСОНАЛ]])","v":{"v":1,"d":"100%"}}]
[null,"Придобиване на бизнес",{"v":0.1,"d":"10%"},{"v":0.4,"d":"40%"},{"v":0,"d":"0%"},{"v":0.1,"d":"10%"},{"v":0,"d":"0%"},{"v":0.4,"d":"40%"},{"$f":"SUM(Параметри[[#This Row],[ОБЩ ПАРТНЬОР]:[АДМИНИСТРАТИВЕН ПЕРСОНАЛ]])","v":{"v":1,"d":"100%"}}]
[null,"Отбрана при продуктова отговорност",{"v":0.2,"d":"20%"},{"v":0,"d":"0%"},{"v":0.5,"d":"50%"},{"v":0,"d":"0%"},{"v":0,"d":"0%"},{"v":0.3,"d":"30%"},{"$f":"SUM(Параметри[[#This Row],[ОБЩ ПАРТНЬОР]:[АДМИНИСТРАТИВЕН ПЕРСОНАЛ]])","v":{"v":1,"d":"100%"}}]
[null,"Прилагане на патент",{"v":0.1,"d":"10%"},{"v":0,"d":"0%"},{"v":0,"d":"0%"},{"v":0.6,"d":"60%"},{"v":0,"d":"0%"},{"v":0.3,"d":"30%"},{"$f":"SUM(Параметри[[#This Row],[ОБЩ ПАРТНЬОР]:[АДМИНИСТРАТИВЕН ПЕРСОНАЛ]])","v":{"v":1,"d":"100%"}}]
[null,"Дело на служител",{"v":0.2,"d":"20%"},{"v":0.1,"d":"10%"},{"v":0.4,"d":"40%"},{"v":0,"d":"0%"},{"v":0,"d":"0%"},{"v":0.3,"d":"30%"},{"$f":"SUM(Параметри[[#This Row],[ОБЩ ПАРТНЬОР]:[АДМИНИСТРАТИВЕН ПЕРСОНАЛ]])","v":{"v":1,"d":"100%"}}]
[null,"Несъстоятелност",{"v":0.1,"d":"10%"},{"v":0.2,"d":"20%"},{"v":0,"d":"0%"},{"v":0,"d":"0%"},{"v":0.4,"d":"40%"},{"v":0.3,"d":"30%"},{"$f":"SUM(Параметри[[#This Row],[ОБЩ ПАРТНЬОР]:[АДМИНИСТРАТИВЕН ПЕРСОНАЛ]])","v":{"v":1,"d":"100%"}}]
["Въведете смесени проценти в клетките вдясно – клетки от C12 до Н12. Следващата инструкция е в клетка A14.","Смесени проценти",{"v":350,"d":"350 лв."},{"v":250,"d":"250 лв."},{"v":300,"d":"300 лв."},{"v":275,"d":"275 лв."},{"v":225,"d":"225 лв."},{"v":125,"d":"125 лв."}]
[]
["Колонната диаграма, показваща сравнение на планирани спрямо действителни разходи, е в клетката вдясно, а колонната диаграма, показваща сравнение на планирани спрямо действителни часове, е в клетка F14."]
[null,null,"ОБЩ ПАРТНЬОР","БИЗНЕС","ЗАЩИТНИК ПО ДЕЛО","ИНТЕЛЕКТ. СОБСТВЕНОСТ","НЕСЪСТОЯТЕЛНОСТ","АДМИНИСТРАТИВЕН ПЕРСОНАЛ"]
[null,"ПЛАНИРАНИ РАЗХОДИ",{"$f":"SUBTOTAL(109,Подробности[ОБЩ ПАРТНЬОР])","v":{"v":78750,"d":"78,750.00 лв."}},{"$f":"SUBTOTAL(109,Подробности[БИЗНЕС ЮРИСТ])","v":{"v":66250,"d":"66,250.00 лв."}},{"$f":"SUBTOTAL(109,Подробности[ЗАЩИТНИК ПО ДЕЛО])","v":{"v":105000,"d":"105,000.00 лв."}},{"$f":"SUBTOTAL(109,Подробности[ЮРИСТ ПО ИНТЕЛЕКТУАЛНА СОБСТВЕНОСТ])","v":{"v":35750,"d":"35,750.00 лв."}},{"$f":"SUBTOTAL(109,Подробности[ЮРИСТ ПО НЕСЪСТОЯТЕЛНОСТ])","v":{"v":0,"d":"0.00 лв."}},{"$f":"SUBTOTAL(109,Подробности[АДМИНИСТРАТИВЕН ПЕРСОНАЛ])","v":{"v":66250,"d":"66,250.00 лв."}}]
[null,"ДЕЙСТВИТЕЛНИ РАЗХОДИ",{"$f":"SUBTOTAL(109,Подробности[ОБЩ ПАРТНЬОР 2])","v":{"v":79275,"d":"79,275.00 лв."}},{"$f":"SUBTOTAL(109,Подробности[БИЗНЕС ЮРИСТ 2])","v":{"v":67375,"d":"67,375.00 лв."}},{"$f":"SUBTOTAL(109,Подробности[ЗАЩИТНИК ПО ДЕЛО 2])","v":{"v":105600,"d":"105,600.00 лв."}},{"$f":"SUBTOTAL(109,Подробности[ЮРИСТ ПО ИНТЕЛЕКТУАЛНА СОБСТВЕНОСТ 2])","v":{"v":34650,"d":"34,650.00 лв."}},{"$f":"SUBTOTAL(109,Подробности[ЮРИСТ ПО НЕСЪСТОЯТЕЛНОСТ 2])","v":{"v":0,"d":"0.00 лв."}},{"$f":"SUBTOTAL(109,Подробности[АДМИНИСТРАТИВЕН ПЕРСОНАЛ 2])","v":{"v":67000,"d":"67,000.00 лв."}}]
[null,"ПЛАНИРАНИ ЧАСОВЕ",{"$f":"C16/$C$12","v":{"v":225,"d":"225.00"}},{"$f":"D16/$C$12","v":{"v":189.28571428571428,"d":"189.29"}},{"v":300,"d":"300.00"},{"v":102.14285714285714,"d":"102.14"},{"v":0,"d":"0.00"},{"v":189.28571428571428,"d":"189.29"}]
[null,"ДЕЙСТВИТЕЛНИ ЧАСОВЕ",{"$f":"C17/$C$12","v":{"v":226.5,"d":"226.50"}},{"$f":"D17/$C$12","v":{"v":192.5,"d":"192.50"}},{"$f":"E17/$C$12","v":{"v":301.7142857142857,"d":"301.71"}},{"$f":"F17/$C$12","v":{"v":99,"d":"99.00"}},{"$f":"G17/$C$12","v":{"v":0,"d":"0.00"}},{"$f":"H17/$C$12","v":{"v":191.42857142857142,"d":"191.43"}}]

{"sheet":"ПОДРОБНОСТИ ЗА ПРОЕКТИ","index":2,"n_rows":10,"n_cols":25,"rows_kept":10,"merged":[[1,24,8,28]]}
["В този работен лист създайте подробности за проекти. Име на фирма се актуализира автоматично в клетката вдясно. В клетките в тази колона има полезни инструкции. Натиснете стрелката надолу, за да започнете.",{"$f":"'ПАРАМЕТРИ НА ПРОЕКТИ'!B1","v":"Име на фирма"}]
["Заглавието на този работен лист е в клетката вдясно, а съветът с информация – в клетка Y2.",{"$f":"'ПАРАМЕТРИ НА ПРОЕКТИ'!B2","v":"Планиране на проекти за юридически фирми"},{"$nulls":22},"ИНФОРМАЦИЯ:\nЗа добавяне на ред изберете клетката най-долу вдясно в тялото на таблицата (а не в сумарния ред) и натиснете клавиша Tab или натиснете SHIFT и след това F10 в таблицата там, където искате да се вмъкне редът, след което изберете \"Вмъкни\" | Редове за таблица отгоре/отдолу\".\nНе забравяйте да изтриете всички неизползвани редове, тъй като обобщената таблица ОБЩИ СУМИ ЗА ПРОЕКТИТЕ ще използва всички клетки на таблиците и в противен случай ще върне грешни резултати."]
["Съобщението за поверителност е в клетка вдясно.",{"$f":"'ПАРАМЕТРИ НА ПРОЕКТИ'!B3","v":"Поверително за Име на фирма"}]
["Въведете информация в таблицата \"Подробности\", като започнете от клетката вдясно. Тип проект в таблицата \"Подробности\" вдясно се актуализират автоматично от таблицата \"Параметри\" в работния лист \"Параметри на проекти\".","ИМЕ НА ПРОЕКТ","ТИП ПРОЕКТ","ОЧАКВАНО НАЧАЛО","ОЧАКВАН КРАЙ","ДЕЙСТВИТЕЛНО НАЧАЛО","ДЕЙСТВИТЕЛЕН КРАЙ","ОЧАКВАНА РАБОТА","ДЕЙСТВИТЕЛНА РАБОТА","ОЧАКВАНА ПРОДЪЛЖИТЕЛНОСТ","ДЕЙСТВИТЕЛНА ПРОДЪЛЖИТЕЛНОСТ","ОБЩ ПАРТНЬОР","БИЗНЕС ЮРИСТ","ЗАЩИТНИК ПО ДЕЛО","ЮРИСТ ПО ИНТЕЛЕКТУАЛНА СОБСТВЕНОСТ","ЮРИСТ ПО НЕСЪСТОЯТЕЛНОСТ","АДМИНИСТРАТИВЕН ПЕРСОНАЛ","ОБЩ ПАРТНЬОР 2","БИЗНЕС ЮРИСТ 2","ЗАЩИТНИК ПО ДЕЛО 2","ЮРИСТ ПО ИНТЕЛЕКТУАЛНА СОБСТВЕНОСТ 2","ЮРИСТ ПО НЕСЪСТОЯТЕЛНОСТ 2","АДМИНИСТРАТИВЕН ПЕРСОНАЛ 2"]
[null,"Проект 1","Обединяване на бизнес",{"$f":"TODAY()","v":"2019-02-18"},{"$f":"TODAY()+60","v":"2019-04-19"},{"$f":"TODAY()+10","v":"2019-02-28"},{"$f":"TODAY()+65","v":"2019-04-24"},200,220,{"$f":"DAYS360(Подробности[[#This Row],[ОЧАКВАНО НАЧАЛО]],Подробности[[#This Row],[ОЧАКВАН КРАЙ]],FALSE)","v":61},{"$f":"DAYS360(Подробности[[#This Row],[ДЕЙСТВИТЕЛНО НАЧАЛО]],Подробности[[#This Row],[ДЕЙСТВИТЕЛЕН КРАЙ]],FALSE)","v":54},{"$f":"INDEX(Параметри[],MATCH(Подробности[[#This Row],[ТИП ПРОЕКТ]],Параметри[ТИП ПРОЕКТ],0),MATCH(Подробности[[#Headers],[ОБЩ ПАРТНЬОР]],Параметри[#Headers],0))*INDEX('ПАРАМЕТРИ НА ПРОЕКТИ'!$B$12:$H$12,1,MATCH(Подробности[[#Headers],[ОБЩ ПАРТНЬОР]],Параметри[#Headers],0))*Подробности[[#This Row],[ОЧАКВАНА РАБОТА]]","v":{"v":7000,"d":"7,000 лв."}},{"$f":"INDEX(Параметри[],MATCH(Подробности[[#This Row],[ТИП ПРОЕКТ]],Параметри[ТИП ПРОЕКТ],0),MATCH(Подробности[[#Headers],[БИЗНЕС ЮРИСТ]],Параметри[#Headers],0))*INDEX('ПАРАМЕТРИ НА ПРОЕКТИ'!$B$12:$H$12,1,MATCH(Подробности[[#Headers],[БИЗНЕС ЮРИСТ]],Параметри[#Headers],0))*Подробности[[#This Row],[ОЧАКВАНА РАБОТА]]","v":{"v":20000,"d":"20,000 лв."}},{"$f":"INDEX(Параметри[],MATCH(Подробности[[#This Row],[ТИП ПРОЕКТ]],Параметри[ТИП ПРОЕКТ],0),MATCH(Подробности[[#Headers],[ЗАЩИТНИК ПО ДЕЛО]],Параметри[#Headers],0))*INDEX('ПАРАМЕТРИ НА ПРОЕКТИ'!$B$12:$H$12,1,MATCH(Подробности[[#Headers],[ЗАЩИТНИК ПО ДЕЛО]],Параметри[#Headers],0))*Подробности[[#This Row],[ОЧАКВАНА РАБОТА]]","v":{"v":0,"d":"0 лв."}},{"$f":"INDEX(Параметри[],MATCH(Подробности[[#This Row],[ТИП ПРОЕКТ]],Параметри[ТИП ПРОЕКТ],0),MATCH(Подробности[[#Headers],[ЮРИСТ ПО ИНТЕЛЕКТУАЛНА СОБСТВЕНОСТ]],Параметри[#Headers],0))*INDEX('ПАРАМЕТРИ НА ПРОЕКТИ'!$B$12:$H$12,1,MATCH(Подробности[[#Headers],[ЮРИСТ ПО ИНТЕЛЕКТУАЛНА СОБСТВЕНОСТ]],Параметри[#Headers],0))*Подробности[[#This Row],[ОЧАКВАНА РАБОТА]]","v":{"v":0,"d":"0 лв."}},{"$f":"INDEX(Параметри[],MATCH(Подробности[[#This Row],[ТИП ПРОЕКТ]],Параметри[ТИП ПРОЕКТ],0),MATCH(Подробности[[#Headers],[ЮРИСТ ПО НЕСЪСТОЯТЕЛНОСТ]],Параметри[#Headers],0))*INDEX('ПАРАМЕТРИ НА ПРОЕКТИ'!$B$12:$H$12,1,MATCH(Подробности[[#Headers],[ЮРИСТ ПО НЕСЪСТОЯТЕЛНОСТ]],Параметри[#Headers],0))*Подробности[[#This Row],[ОЧАКВАНА РАБОТА]]","v":{"v":0,"d":"0 лв."}},{"$f":"INDEX(Параметри[],MATCH(Подробности[[#This Row],[ТИП ПРОЕКТ]],Параметри[ТИП ПРОЕКТ],0),MATCH(Подробности[[#Headers],[АДМИНИСТРАТИВЕН ПЕРСОНАЛ]],Параметри[#Headers],0))*INDEX('ПАРАМЕТРИ НА ПРОЕКТИ'!$B$12:$H$12,1,MATCH(Подробности[[#Headers],[АДМИНИСТРАТИВЕН ПЕРСОНАЛ]],Параметри[#Headers],0))*Подробности[[#This Row],[ОЧАКВАНА РАБОТА]]","v":{"v":12500,"d":"12,500 лв."}},{"$f":"INDEX(Параметри[],MATCH(Подробности[[#This Row],[ТИП ПРОЕКТ]],Параметри[ТИП ПРОЕКТ],0),MATCH(Подробности[[#Headers],[ОБЩ ПАРТНЬОР]],Параметри[#Headers],0))*INDEX('ПАРАМЕТРИ НА ПРОЕКТИ'!$B$12:$H$12,1,MATCH(Подробности[[#Headers],[ОБЩ ПАРТНЬОР]],Параметри[#Headers],0))*Подробности[[#This Row],[ДЕЙСТВИТЕЛНА РАБОТА]]","v":{"v":7700,"d":"7,700 лв."}},{"$f":"INDEX(Параметри[],MATCH(Подробности[[#This Row],[ТИП ПРОЕКТ]],Параметри[ТИП ПРОЕКТ],0),MATCH(Подробности[[#Headers],[БИЗНЕС ЮРИСТ]],Параметри[#Headers],0))*INDEX('ПАРАМЕТРИ НА ПРОЕКТИ'!$B$12:$H$12,1,MATCH(Подробности[[#Headers],[БИЗНЕС ЮРИСТ]],Параметри[#Headers],0))*Подробности[[#This Row],[ДЕЙСТВИТЕЛНА РАБОТА]]","v":{"v":22000,"d":"22,000 лв."}},{"$f":"INDEX(Параметри[],MATCH(Подробности[[#This Row],[ТИП ПРОЕКТ]],Параметри[ТИП ПРОЕКТ],0),MATCH(Подробности[[#Headers],[ЗАЩИТНИК ПО ДЕЛО]],Параметри[#Headers],0))*INDEX('ПАРАМЕТРИ НА ПРОЕКТИ'!$B$12:$H$12,1,MATCH(Подробности[[#Headers],[ЗАЩИТНИК ПО ДЕЛО]],Параметри[#Headers],0))*Подробности[[#This Row],[ДЕЙСТВИТЕЛНА РАБОТА]]","v":{"v":0,"d":"0 лв."}},{"$f":"INDEX(Параметри[],MATCH(Подробности[[#This Row],[ТИП ПРОЕКТ]],Параметри[ТИП ПРОЕКТ],0),MATCH(Подробности[[#Headers],[ЮРИСТ ПО ИНТЕЛЕКТУАЛНА СОБСТВЕНОСТ]],Параметри[#Headers],0))*INDEX('ПАРАМЕТРИ НА ПРОЕКТИ'!$B$12:$H$12,1,MATCH(Подробности[[#Headers],[ЮРИСТ ПО ИНТЕЛЕКТУАЛНА СОБСТВЕНОСТ]],Параметри[#Headers],0))*Подробности[[#This Row],[ДЕЙСТВИТЕЛНА РАБОТА]]","v":{"v":0,"d":"0 лв."}},{"$f":"INDEX(Параметри[],MATCH(Подробности[[#This Row],[ТИП ПРОЕКТ]],Параметри[ТИП ПРОЕКТ],0),MATCH(Подробности[[#Headers],[ЮРИСТ ПО НЕСЪСТОЯТЕЛНОСТ]],Параметри[#Headers],0))*INDEX('ПАРАМЕТРИ НА ПРОЕКТИ'!$B$12:$H$12,1,MATCH(Подробности[[#Headers],[ЮРИСТ ПО НЕСЪСТОЯТЕЛНОСТ]],Параметри[#Headers],0))*Подробности[[#This Row],[ДЕЙСТВИТЕЛНА РАБОТА]]","v":{"v":0,"d":"0 лв."}},{"$f":"INDEX(Параметри[],MATCH(Подробности[[#This Row],[ТИП ПРОЕКТ]],Параметри[ТИП ПРОЕКТ],0),MATCH(Подробности[[#Headers],[АДМИНИСТРАТИВЕН ПЕРСОНАЛ]],Параметри[#Headers],0))*INDEX('ПАРАМЕТРИ НА ПРОЕКТИ'!$B$12:$H$12,1,MATCH(Подробности[[#Headers],[АДМИНИСТРАТИВЕН ПЕРСОНАЛ]],Параметри[#Headers],0))*Подробности[[#This Row],[ДЕЙСТВИТЕЛНА РАБОТА]]","v":{"v":13750,"d":"13,750 лв."}}]
[null,"Проект 2","Придобиване на бизнес",{"$f":"TODAY()+30","v":"2019-03-20"},{"$f":"TODAY()+100","v":"2019-05-29"},{"$f":"TODAY()+40","v":"2019-03-30"},{"$f":"TODAY()+110","v":"2019-06-08"},400,390,{"$f":"DAYS360(Подробности[[#This Row],[ОЧАКВАНО НАЧАЛО]],Подробности[[#This Row],[ОЧАКВАН КРАЙ]],FALSE)","v":69},{"$f":"DAYS360(Подробности[[#This Row],[ДЕЙСТВИТЕЛНО НАЧАЛО]],Подробности[[#This Row],[ДЕЙСТВИТЕЛЕН КРАЙ]],FALSE)","v":68},{"$f":"INDEX(Параметри[],MATCH(Подробности[[#This Row],[ТИП ПРОЕКТ]],Параметри[ТИП ПРОЕКТ],0),MATCH(Подробности[[#Headers],[ОБЩ ПАРТНЬОР]],Параметри[#Headers],0))*INDEX('ПАРАМЕТРИ НА ПРОЕКТИ'!$B$12:$H$12,1,MATCH(Подробности[[#Headers],[ОБЩ ПАРТНЬОР]],Параметри[#Headers],0))*Подробности[[#This Row],[ОЧАКВАНА РАБОТА]]","v":{"v":14000,"d":"14,000 лв."}},{"$f":"INDEX(Параметри[],MATCH(Подробности[[#This Row],[ТИП ПРОЕКТ]],Параметри[ТИП ПРОЕКТ],0),MATCH(Подробности[[#Headers],[БИЗНЕС ЮРИСТ]],Параметри[#Headers],0))*INDEX('ПАРАМЕТРИ НА ПРОЕКТИ'!$B$12:$H$12,1,MATCH(Подробности[[#Headers],[БИЗНЕС ЮРИСТ]],Параметри[#Headers],0))*Подробности[[#This Row],[ОЧАКВАНА РАБОТА]]","v":{"v":40000,"d":"40,000 лв."}},{"$f":"INDEX(Параметри[],MATCH(Подробности[[#This Row],[ТИП ПРОЕКТ]],Параметри[ТИП ПРОЕКТ],0),MATCH(Подробности[[#Headers],[ЗАЩИТНИК ПО ДЕЛО]],Параметри[#Headers],0))*INDEX('ПАРАМЕТРИ НА ПРОЕКТИ'!$B$12:$H$12,1,MATCH(Подробности[[#Headers],[ЗАЩИТНИК ПО ДЕЛО]],Параметри[#Headers],0))*Подробности[[#This Row],[ОЧАКВАНА РАБОТА]]","v":{"v":0,"d":"0 лв."}},{"$f":"INDEX(Параметри[],MATCH(Подробности[[#This Row],[ТИП ПРОЕКТ]],Параметри[ТИП ПРОЕКТ],0),MATCH(Подробности[[#Headers],[ЮРИСТ ПО ИНТЕЛЕКТУАЛНА СОБСТВЕНОСТ]],Параметри[#Headers],0))*INDEX('ПАРАМЕТРИ НА ПРОЕКТИ'!$B$12:$H$12,1,MATCH(Подробности[[#Headers],[ЮРИСТ ПО ИНТЕЛЕКТУАЛНА СОБСТВЕНОСТ]],Параметри[#Headers],0))*Подробности[[#This Row],[ОЧАКВАНА РАБОТА]]","v":{"v":11000,"d":"11,000 лв."}},{"$f":"INDEX(Параметри[],MATCH(Подробности[[#This Row],[ТИП ПРОЕКТ]],Параметри[ТИП ПРОЕКТ],0),MATCH(Подробности[[#Headers],[ЮРИСТ ПО НЕСЪСТОЯТЕЛНОСТ]],Параметри[#Headers],0))*INDEX('ПАРАМЕТРИ НА ПРОЕКТИ'!$B$12:$H$12,1,MATCH(Подробности[[#Headers],[ЮРИСТ ПО НЕСЪСТОЯТЕЛНОСТ]],Параметри[#Headers],0))*Подробности[[#This Row],[ОЧАКВАНА РАБОТА]]","v":{"v":0,"d":"0 лв."}},{"$f":"INDEX(Параметри[],MATCH(Подробности[[#This Row],[ТИП ПРОЕКТ]],Параметри[ТИП ПРОЕКТ],0),MATCH(Подробности[[#Headers],[АДМИНИСТРАТИВЕН ПЕРСОНАЛ]],Параметри[#Headers],0))*INDEX('ПАРАМЕТРИ НА ПРОЕКТИ'!$B$12:$H$12,1,MATCH(Подробности[[#Headers],[АДМИНИСТРАТИВЕН ПЕРСОНАЛ]],Параметри[#Headers],0))*Подробности[[#This Row],[ОЧАКВАНА РАБОТА]]","v":{"v":20000,"d":"20,000 лв."}},{"$f":"INDEX(Параметри[],MATCH(Подробности[[#This Row],[ТИП ПРОЕКТ]],Параметри[ТИП ПРОЕКТ],0),MATCH(Подробности[[#Headers],[ОБЩ ПАРТНЬОР]],Параметри[#Headers],0))*INDEX('ПАРАМЕТРИ НА ПРОЕКТИ'!$B$12:$H$12,1,MATCH(Подробности[[#Headers],[ОБЩ ПАРТНЬОР]],Параметри[#Headers],0))*Подробности[[#This Row],[ДЕЙСТВИТЕЛНА РАБОТА]]","v":{"v":13650,"d":"13,650 лв."}},{"$f":"INDEX(Параметри[],MATCH(Подробности[[#This Row],[ТИП ПРОЕКТ]],Параметри[ТИП ПРОЕКТ],0),MATCH(Подробности[[#Headers],[БИЗНЕС ЮРИСТ]],Параметри[#Headers],0))*INDEX('ПАРАМЕТРИ НА ПРОЕКТИ'!$B$12:$H$12,1,MATCH(Подробности[[#Headers],[БИЗНЕС ЮРИСТ]],Параметри[#Headers],0))*Подробности[[#This Row],[ДЕЙСТВИТЕЛНА РАБОТА]]","v":{"v":39000,"d":"39,000 лв."}},{"$f":"INDEX(Параметри[],MATCH(Подробности[[#This Row],[ТИП ПРОЕКТ]],Параметри[ТИП ПРОЕКТ],0),MATCH(Подробности[[#Headers],[ЗАЩИТНИК ПО ДЕЛО]],Параметри[#Headers],0))*INDEX('ПАРАМЕТРИ НА ПРОЕКТИ'!$B$12:$H$12,1,MATCH(Подробности[[#Headers],[ЗАЩИТНИК ПО ДЕЛО]],Параметри[#Headers],0))*Подробности[[#This Row],[ДЕЙСТВИТЕЛНА РАБОТА]]","v":{"v":0,"d":"0 лв."}},{"$f":"INDEX(Параметри[],MATCH(Подробности[[#This Row],[ТИП ПРОЕКТ]],Параметри[ТИП ПРОЕКТ],0),MATCH(Подробности[[#Headers],[ЮРИСТ ПО ИНТЕЛЕКТУАЛНА СОБСТВЕНОСТ]],Параметри[#Headers],0))*INDEX('ПАРАМЕТРИ НА ПРОЕКТИ'!$B$12:$H$12,1,MATCH(Подробности[[#Headers],[ЮРИСТ ПО ИНТЕЛЕКТУАЛНА СОБСТВЕНОСТ]],Параметри[#Headers],0))*Подробности[[#This Row],[ДЕЙСТВИТЕЛНА РАБОТА]]","v":{"v":10725,"d":"10,725 лв."}},{"$f":"INDEX(Параметри[],MATCH(Подробности[[#This Row],[ТИП ПРОЕКТ]],Параметри[ТИП ПРОЕКТ],0),MATCH(Подробности[[#Headers],[ЮРИСТ ПО НЕСЪСТОЯТЕЛНОСТ]],Параметри[#Headers],0))*INDEX('ПАРАМЕТРИ НА ПРОЕКТИ'!$B$12:$H$12,1,MATCH(Подробности[[#Headers],[ЮРИСТ ПО НЕСЪСТОЯТЕЛНОСТ]],Параметри[#Headers],0))*Подробности[[#This Row],[ДЕЙСТВИТЕЛНА РАБОТА]]","v":{"v":0,"d":"0 лв."}},{"$f":"INDEX(Параметри[],MATCH(Подробности[[#This Row],[ТИП ПРОЕКТ]],Параметри[ТИП ПРОЕКТ],0),MATCH(Подробности[[#Headers],[АДМИНИСТРАТИВЕН ПЕРСОНАЛ]],Параметри[#Headers],0))*INDEX('ПАРАМЕТРИ НА ПРОЕКТИ'!$B$12:$H$12,1,MATCH(Подробности[[#Headers],[АДМИНИСТРАТИВЕН ПЕРСОНАЛ]],Параметри[#Headers],0))*Подробности[[#This Row],[ДЕЙСТВИТЕЛНА РАБОТА]]","v":{"v":19500,"d":"19,500 лв."}}]
[null,"Проект 3","Отбрана при продуктова отговорност",{"$f":"TODAY()+150","v":"2019-07-18"},{"$f":"TODAY()+150","v":"2019-07-18"},{"$f":"TODAY()+150","v":"2019-07-18"},{"$f":"TODAY()+170","v":"2019-08-07"},500,500,{"$f":"DAYS360(Подробности[[#This Row],[ОЧАКВАНО НАЧАЛО]],Подробности[[#This Row],[ОЧАКВАН КРАЙ]],FALSE)","v":0},{"$f":"DAYS360(Подробности[[#This Row],[ДЕЙСТВИТЕЛНО НАЧАЛО]],Подробности[[#This Row],[ДЕЙСТВИТЕЛЕН КРАЙ]],FALSE)","v":19},{"$f":"INDEX(Параметри[],MATCH(Подробности[[#This Row],[ТИП ПРОЕКТ]],Параметри[ТИП ПРОЕКТ],0),MATCH(Подробности[[#Headers],[ОБЩ ПАРТНЬОР]],Параметри[#Headers],0))*INDEX('ПАРАМЕТРИ НА ПРОЕКТИ'!$B$12:$H$12,1,MATCH(Подробности[[#Headers],[ОБЩ ПАРТНЬОР]],Параметри[#Headers],0))*Подробности[[#This Row],[ОЧАКВАНА РАБОТА]]","v":{"v":35000,"d":"35,000 лв."}},{"$f":"INDEX(Параметри[],MATCH(Подробности[[#This Row],[ТИП ПРОЕКТ]],Параметри[ТИП ПРОЕКТ],0),MATCH(Подробности[[#Headers],[БИЗНЕС ЮРИСТ]],Параметри[#Headers],0))*INDEX('ПАРАМЕТРИ НА ПРОЕКТИ'!$B$12:$H$12,1,MATCH(Подробности[[#Headers],[БИЗНЕС ЮРИСТ]],Параметри[#Headers],0))*Подробности[[#This Row],[ОЧАКВАНА РАБОТА]]","v":{"v":0,"d":"0 лв."}},{"$f":"INDEX(Параметри[],MATCH(Подробности[[#This Row],[ТИП ПРОЕКТ]],Параметри[ТИП ПРОЕКТ],0),MATCH(Подробности[[#Headers],[ЗАЩИТНИК ПО ДЕЛО]],Параметри[#Headers],0))*INDEX('ПАРАМЕТРИ НА ПРОЕКТИ'!$B$12:$H$12,1,MATCH(Подробности[[#Headers],[ЗАЩИТНИК ПО ДЕЛО]],Параметри[#Headers],0))*Подробности[[#This Row],[ОЧАКВАНА РАБОТА]]","v":{"v":75000,"d":"75,000 лв."}},{"$f":"INDEX(Параметри[],MATCH(Подробности[[#This Row],[ТИП ПРОЕКТ]],Параметри[ТИП ПРОЕКТ],0),MATCH(Подробности[[#Headers],[ЮРИСТ ПО ИНТЕЛЕКТУАЛНА СОБСТВЕНОСТ]],Параметри[#Headers],0))*INDEX('ПАРАМЕТРИ НА ПРОЕКТИ'!$B$12:$H$12,1,MATCH(Подробности[[#Headers],[ЮРИСТ ПО ИНТЕЛЕКТУАЛНА СОБСТВЕНОСТ]],Параметри[#Headers],0))*Подробности[[#This Row],[ОЧАКВАНА РАБОТА]]","v":{"v":0,"d":"0 лв."}},{"$f":"INDEX(Параметри[],MATCH(Подробности[[#This Row],[ТИП ПРОЕКТ]],Параметри[ТИП ПРОЕКТ],0),MATCH(Подробности[[#Headers],[ЮРИСТ ПО НЕСЪСТОЯТЕЛНОСТ]],Параметри[#Headers],0))*INDEX('ПАРАМЕТРИ НА ПРОЕКТИ'!$B$12:$H$12,1,MATCH(Подробности[[#Headers],[ЮРИСТ ПО НЕСЪСТОЯТЕЛНОСТ]],Параметри[#Headers],0))*Подробности[[#This Row],[ОЧАКВАНА РАБОТА]]","v":{"v":0,"d":"0 лв."}},{"$f":"INDEX(Параметри[],MATCH(Подробности[[#This Row],[ТИП ПРОЕКТ]],Параметри[ТИП ПРОЕКТ],0),MATCH(Подробности[[#Headers],[АДМИНИСТРАТИВЕН ПЕРСОНАЛ]],Параметри[#Headers],0))*INDEX('ПАРАМЕТРИ НА ПРОЕКТИ'!$B$12:$H$12,1,MATCH(Подробности[[#Headers],[АДМИНИСТРАТИВЕН ПЕРСОНАЛ]],Параметри[#Headers],0))*Подробности[[#This Row],[ОЧАКВАНА РАБОТА]]","v":{"v":18750,"d":"18,750 лв."}},{"$f":"INDEX(Параметри[],MATCH(Подробности[[#This Row],[ТИП ПРОЕКТ]],Параметри[ТИП ПРОЕКТ],0),MATCH(Подробности[[#Headers],[ОБЩ ПАРТНЬОР]],Параметри[#Headers],0))*INDEX('ПАРАМЕТРИ НА ПРОЕКТИ'!$B$12:$H$12,1,MATCH(Подробности[[#Headers],[ОБЩ ПАРТНЬОР]],Параметри[#Headers],0))*Подробности[[#This Row],[ДЕЙСТВИТЕЛНА РАБОТА]]","v":{"v":35000,"d":"35,000 лв."}},{"$f":"INDEX(Параметри[],MATCH(Подробности[[#This Row],[ТИП ПРОЕКТ]],Параметри[ТИП ПРОЕКТ],0),MATCH(Подробности[[#Headers],[БИЗНЕС ЮРИСТ]],Параметри[#Headers],0))*INDEX('ПАРАМЕТРИ НА ПРОЕКТИ'!$B$12:$H$12,1,MATCH(Подробности[[#Headers],[БИЗНЕС ЮРИСТ]],Параметри[#Headers],0))*Подробности[[#This Row],[ДЕЙСТВИТЕЛНА РАБОТА]]","v":{"v":0,"d":"0 лв."}},{"$f":"INDEX(Параметри[],MATCH(Подробности[[#This Row],[ТИП ПРОЕКТ]],Параметри[ТИП ПРОЕКТ],0),MATCH(Подробности[[#Headers],[ЗАЩИТНИК ПО ДЕЛО]],Параметри[#Headers],0))*INDEX('ПАРАМЕТРИ НА ПРОЕКТИ'!$B$12:$H$12,1,MATCH(Подробности[[#Headers],[ЗАЩИТНИК ПО ДЕЛО]],Параметри[#Headers],0))*Подробности[[#This Row],[ДЕЙСТВИТЕЛНА РАБОТА]]","v":{"v":75000,"d":"75,000 лв."}},{"$f":"INDEX(Параметри[],MATCH(Подробности[[#This Row],[ТИП ПРОЕКТ]],Параметри[ТИП ПРОЕКТ],0),MATCH(Подробности[[#Headers],[ЮРИСТ ПО ИНТЕЛЕКТУАЛНА СОБСТВЕНОСТ]],Параметри[#Headers],0))*INDEX('ПАРАМЕТРИ НА ПРОЕКТИ'!$B$12:$H$12,1,MATCH(Подробности[[#Headers],[ЮРИСТ ПО ИНТЕЛЕКТУАЛНА СОБСТВЕНОСТ]],Параметри[#Headers],0))*Подробности[[#This Row],[ДЕЙСТВИТЕЛНА РАБОТА]]","v":{"v":0,"d":"0 лв."}},{"$f":"INDEX(Параметри[],MATCH(Подробности[[#This Row],[ТИП ПРОЕКТ]],Параметри[ТИП ПРОЕКТ],0),MATCH(Подробности[[#Headers],[ЮРИСТ ПО НЕСЪСТОЯТЕЛНОСТ]],Параметри[#Headers],0))*INDEX('ПАРАМЕТРИ НА ПРОЕКТИ'!$B$12:$H$12,1,MATCH(Подробности[[#Headers],[ЮРИСТ ПО НЕСЪСТОЯТЕЛНОСТ]],Параметри[#Headers],0))*Подробности[[#This Row],[ДЕЙСТВИТЕЛНА РАБОТА]]","v":{"v":0,"d":"0 лв."}},{"$f":"INDEX(Параметри[],MATCH(Подробности[[#This Row],[ТИП ПРОЕКТ]],Параметри[ТИП ПРОЕКТ],0),MATCH(Подробности[[#Headers],[АДМИНИСТРАТИВЕН ПЕРСОНАЛ]],Параметри[#Headers],0))*INDEX('ПАРАМЕТРИ НА ПРОЕКТИ'!$B$12:$H$12,1,MATCH(Подробности[[#Headers],[АДМИНИСТРАТИВЕН ПЕРСОНАЛ]],Параметри[#Headers],0))*Подробности[[#This Row],[ДЕЙСТВИТЕЛНА РАБОТА]]","v":{"v":18750,"d":"18,750 лв."}}]
[null,"Проект 4","Прилагане на патент",{"$f":"TODAY()+200","v":"2019-09-06"},{"$f":"TODAY()+230","v":"2019-10-06"},{"$f":"TODAY()+230","v":"2019-10-06"},{"$f":"TODAY()+230","v":"2019-10-06"},150,145,{"$f":"DAYS360(Подробности[[#This Row],[ОЧАКВАНО НАЧАЛО]],Подробности[[#This Row],[ОЧАКВАН КРАЙ]],FALSE)","v":30},{"$f":"DAYS360(Подробности[[#This Row],[ДЕЙСТВИТЕЛНО НАЧАЛО]],Подробности[[#This Row],[ДЕЙСТВИТЕЛЕН КРАЙ]],FALSE)","v":0},{"$f":"INDEX(Параметри[],MATCH(Подробности[[#This Row],[ТИП ПРОЕКТ]],Параметри[ТИП ПРОЕКТ],0),MATCH(Подробности[[#Headers],[ОБЩ ПАРТНЬОР]],Параметри[#Headers],0))*INDEX('ПАРАМЕТРИ НА ПРОЕКТИ'!$B$12:$H$12,1,MATCH(Подробности[[#Headers],[ОБЩ ПАРТНЬОР]],Параметри[#Headers],0))*Подробности[[#This Row],[ОЧАКВАНА РАБОТА]]","v":{"v":5250,"d":"5,250 лв."}},{"$f":"INDEX(Параметри[],MATCH(Подробности[[#This Row],[ТИП ПРОЕКТ]],Параметри[ТИП ПРОЕКТ],0),MATCH(Подробности[[#Headers],[БИЗНЕС ЮРИСТ]],Параметри[#Headers],0))*INDEX('ПАРАМЕТРИ НА ПРОЕКТИ'!$B$12:$H$12,1,MATCH(Подробности[[#Headers],[БИЗНЕС ЮРИСТ]],Параметри[#Headers],0))*Подробности[[#This Row],[ОЧАКВАНА РАБОТА]]","v":{"v":0,"d":"0 лв."}},{"$f":"INDEX(Параметри[],MATCH(Подробности[[#This Row],[ТИП ПРОЕКТ]],Параметри[ТИП ПРОЕКТ],0),MATCH(Подробности[[#Headers],[ЗАЩИТНИК ПО ДЕЛО]],Параметри[#Headers],0))*INDEX('ПАРАМЕТРИ НА ПРОЕКТИ'!$B$12:$H$12,1,MATCH(Подробности[[#Headers],[ЗАЩИТНИК ПО ДЕЛО]],Параметри[#Headers],0))*Подробности[[#This Row],[ОЧАКВАНА РАБОТА]]","v":{"v":0,"d":"0 лв."}},{"$f":"INDEX(Параметри[],MATCH(Подробности[[#This Row],[ТИП ПРОЕКТ]],Параметри[ТИП ПРОЕКТ],0),MATCH(Подробности[[#Headers],[ЮРИСТ ПО ИНТЕЛЕКТУАЛНА СОБСТВЕНОСТ]],Параметри[#Headers],0))*INDEX('ПАРАМЕТРИ НА ПРОЕКТИ'!$B$12:$H$12,1,MATCH(Подробности[[#Headers],[ЮРИСТ ПО ИНТЕЛЕКТУАЛНА СОБСТВЕНОСТ]],Параметри[#Headers],0))*Подробности[[#This Row],[ОЧАКВАНА РАБОТА]]","v":{"v":24750,"d":"24,750 лв."}},{"$f":"INDEX(Параметри[],MATCH(Подробности[[#This Row],[ТИП ПРОЕКТ]],Параметри[ТИП ПРОЕКТ],0),MATCH(Подробности[[#Headers],[ЮРИСТ ПО НЕСЪСТОЯТЕЛНОСТ]],Параметри[#Headers],0))*INDEX('ПАРАМЕТРИ НА ПРОЕКТИ'!$B$12:$H$12,1,MATCH(Подробности[[#Headers],[ЮРИСТ ПО НЕСЪСТОЯТЕЛНОСТ]],Параметри[#Headers],0))*Подробности[[#This Row],[ОЧАКВАНА РАБОТА]]","v":{"v":0,"d":"0 лв."}},{"$f":"INDEX(Параметри[],MATCH(Подробности[[#This Row],[ТИП ПРОЕКТ]],Параметри[ТИП ПРОЕКТ],0),MATCH(Подробности[[#Headers],[АДМИНИСТРАТИВЕН ПЕРСОНАЛ]],Параметри[#Headers],0))*INDEX('ПАРАМЕТРИ НА ПРОЕКТИ'!$B$12:$H$12,1,MATCH(Подробности[[#Headers],[АДМИНИСТРАТИВЕН ПЕРСОНАЛ]],Параметри[#Headers],0))*Подробности[[#This Row],[ОЧАКВАНА РАБОТА]]","v":{"v":5625,"d":"5,625 лв."}},{"$f":"INDEX(Параметри[],MATCH(Подробности[[#This Row],[ТИП ПРОЕКТ]],Параметри[ТИП ПРОЕКТ],0),MATCH(Подробности[[#Headers],[ОБЩ ПАРТНЬОР]],Параметри[#Headers],0))*INDEX('ПАРАМЕТРИ НА ПРОЕКТИ'!$B$12:$H$12,1,MATCH(Подробности[[#Headers],[ОБЩ ПАРТНЬОР]],Параметри[#Headers],0))*Подробности[[#This Row],[ДЕЙСТВИТЕЛНА РАБОТА]]","v":{"v":5075,"d":"5,075 лв."}},{"$f":"INDEX(Параметри[],MATCH(Подробности[[#This Row],[ТИП ПРОЕКТ]],Параметри[ТИП ПРОЕКТ],0),MATCH(Подробности[[#Headers],[БИЗНЕС ЮРИСТ]],Параметри[#Headers],0))*INDEX('ПАРАМЕТРИ НА ПРОЕКТИ'!$B$12:$H$12,1,MATCH(Подробности[[#Headers],[БИЗНЕС ЮРИСТ]],Параметри[#Headers],0))*Подробности[[#This Row],[ДЕЙСТВИТЕЛНА РАБОТА]]","v":{"v":0,"d":"0 лв."}},{"$f":"INDEX(Параметри[],MATCH(Подробности[[#This Row],[ТИП ПРОЕКТ]],Параметри[ТИП ПРОЕКТ],0),MATCH(Подробности[[#Headers],[ЗАЩИТНИК ПО ДЕЛО]],Параметри[#Headers],0))*INDEX('ПАРАМЕТРИ НА ПРОЕКТИ'!$B$12:$H$12,1,MATCH(Подробности[[#Headers],[ЗАЩИТНИК ПО ДЕЛО]],Параметри[#Headers],0))*Подробности[[#This Row],[ДЕЙСТВИТЕЛНА РАБОТА]]","v":{"v":0,"d":"0 лв."}},{"$f":"INDEX(Параметри[],MATCH(Подробности[[#This Row],[ТИП ПРОЕКТ]],Параметри[ТИП ПРОЕКТ],0),MATCH(Подробности[[#Headers],[ЮРИСТ ПО ИНТЕЛЕКТУАЛНА СОБСТВЕНОСТ]],Параметри[#Headers],0))*INDEX('ПАРАМЕТРИ НА ПРОЕКТИ'!$B$12:$H$12,1,MATCH(Подробности[[#Headers],[ЮРИСТ ПО ИНТЕЛЕКТУАЛНА СОБСТВЕНОСТ]],Параметри[#Headers],0))*Подробности[[#This Row],[ДЕЙСТВИТЕЛНА РАБОТА]]","v":{"v":23925,"d":"23,925 лв."}},{"$f":"INDEX(Параметри[],MATCH(Подробности[[#This Row],[ТИП ПРОЕКТ]],Параметри[ТИП ПРОЕКТ],0),MATCH(Подробности[[#Headers],[ЮРИСТ ПО НЕСЪСТОЯТЕЛНОСТ]],Параметри[#Headers],0))*INDEX('ПАРАМЕТРИ НА ПРОЕКТИ'!$B$12:$H$12,1,MATCH(Подробности[[#Headers],[ЮРИСТ ПО НЕСЪСТОЯТЕЛНОСТ]],Параметри[#Headers],0))*Подробности[[#This Row],[ДЕЙСТВИТЕЛНА РАБОТА]]","v":{"v":0,"d":"0 лв."}},{"$f":"INDEX(Параметри[],MATCH(Подробности[[#This Row],[ТИП ПРОЕКТ]],Параметри[ТИП ПРОЕКТ],0),MATCH(Подробности[[#Headers],[АДМИНИСТРАТИВЕН ПЕРСОНАЛ]],Параметри[#Headers],0))*INDEX('ПАРАМЕТРИ НА ПРОЕКТИ'!$B$12:$H$12,1,MATCH(Подробности[[#Headers],[АДМИНИСТРАТИВЕН ПЕРСОНАЛ]],Параметри[#Headers],0))*Подробности[[#This Row],[ДЕЙСТВИТЕЛНА РАБОТА]]","v":{"v":5437.5,"d":"5,438 лв."}}]
[null,"Проект 5","Дело на служител",{"$f":"TODAY()+220","v":"2019-09-26"},{"$f":"TODAY()+250","v":"2019-10-26"},{"$f":"TODAY()+230","v":"2019-10-06"},{"$f":"TODAY()+259","v":"2019-11-04"},250,255,{"$f":"DAYS360(Подробности[[#This Row],[ОЧАКВАНО НАЧАЛО]],Подробности[[#This Row],[ОЧАКВАН КРАЙ]],FALSE)","v":30},{"$f":"DAYS360(Подробности[[#This Row],[ДЕЙСТВИТЕЛНО НАЧАЛО]],Подробности[[#This Row],[ДЕЙСТВИТЕЛЕН КРАЙ]],FALSE)","v":28},{"$f":"INDEX(Параметри[],MATCH(Подробности[[#This Row],[ТИП ПРОЕКТ]],Параметри[ТИП ПРОЕКТ],0),MATCH(Подробности[[#Headers],[ОБЩ ПАРТНЬОР]],Параметри[#Headers],0))*INDEX('ПАРАМЕТРИ НА ПРОЕКТИ'!$B$12:$H$12,1,MATCH(Подробности[[#Headers],[ОБЩ ПАРТНЬОР]],Параметри[#Headers],0))*Подробности[[#This Row],[ОЧАКВАНА РАБОТА]]","v":{"v":17500,"d":"17,500 лв."}},{"$f":"INDEX(Параметри[],MATCH(Подробности[[#This Row],[ТИП ПРОЕКТ]],Параметри[ТИП ПРОЕКТ],0),MATCH(Подробности[[#Headers],[БИЗНЕС ЮРИСТ]],Параметри[#Headers],0))*INDEX('ПАРАМЕТРИ НА ПРОЕКТИ'!$B$12:$H$12,1,MATCH(Подробности[[#Headers],[БИЗНЕС ЮРИСТ]],Параметри[#Headers],0))*Подробности[[#This Row],[ОЧАКВАНА РАБОТА]]","v":{"v":6250,"d":"6,250 лв."}},{"$f":"INDEX(Параметри[],MATCH(Подробности[[#This Row],[ТИП ПРОЕКТ]],Параметри[ТИП ПРОЕКТ],0),MATCH(Подробности[[#Headers],[ЗАЩИТНИК ПО ДЕЛО]],Параметри[#Headers],0))*INDEX('ПАРАМЕТРИ НА ПРОЕКТИ'!$B$12:$H$12,1,MATCH(Подробности[[#Headers],[ЗАЩИТНИК ПО ДЕЛО]],Параметри[#Headers],0))*Подробности[[#This Row],[ОЧАКВАНА РАБОТА]]","v":{"v":30000,"d":"30,000 лв."}},{"$f":"INDEX(Параметри[],MATCH(Подробности[[#This Row],[ТИП ПРОЕКТ]],Параметри[ТИП ПРОЕКТ],0),MATCH(Подробности[[#Headers],[ЮРИСТ ПО ИНТЕЛЕКТУАЛНА СОБСТВЕНОСТ]],Параметри[#Headers],0))*INDEX('ПАРАМЕТРИ НА ПРОЕКТИ'!$B$12:$H$12,1,MATCH(Подробности[[#Headers],[ЮРИСТ ПО ИНТЕЛЕКТУАЛНА СОБСТВЕНОСТ]],Параметри[#Headers],0))*Подробности[[#This Row],[ОЧАКВАНА РАБОТА]]","v":{"v":0,"d":"0 лв."}},{"$f":"INDEX(Параметри[],MATCH(Подробности[[#This Row],[ТИП ПРОЕКТ]],Параметри[ТИП ПРОЕКТ],0),MATCH(Подробности[[#Headers],[ЮРИСТ ПО НЕСЪСТОЯТЕЛНОСТ]],Параметри[#Headers],0))*INDEX('ПАРАМЕТРИ НА ПРОЕКТИ'!$B$12:$H$12,1,MATCH(Подробности[[#Headers],[ЮРИСТ ПО НЕСЪСТОЯТЕЛНОСТ]],Параметри[#Headers],0))*Подробности[[#This Row],[ОЧАКВАНА РАБОТА]]","v":{"v":0,"d":"0 лв."}},{"$f":"INDEX(Параметри[],MATCH(Подробности[[#This Row],[ТИП ПРОЕКТ]],Параметри[ТИП ПРОЕКТ],0),MATCH(Подробности[[#Headers],[АДМИНИСТРАТИВЕН ПЕРСОНАЛ]],Параметри[#Headers],0))*INDEX('ПАРАМЕТРИ НА ПРОЕКТИ'!$B$12:$H$12,1,MATCH(Подробности[[#Headers],[АДМИНИСТРАТИВЕН ПЕРСОНАЛ]],Параметри[#Headers],0))*Подробности[[#This Row],[ОЧАКВАНА РАБОТА]]","v":{"v":9375,"d":"9,375 лв."}},{"$f":"INDEX(Параметри[],MATCH(Подробности[[#This Row],[ТИП ПРОЕКТ]],Параметри[ТИП ПРОЕКТ],0),MATCH(Подробности[[#Headers],[ОБЩ ПАРТНЬОР]],Параметри[#Headers],0))*INDEX('ПАРАМЕТРИ НА ПРОЕКТИ'!$B$12:$H$12,1,MATCH(Подробности[[#Headers],[ОБЩ ПАРТНЬОР]],Параметри[#Headers],0))*Подробности[[#This Row],[ДЕЙСТВИТЕЛНА РАБОТА]]","v":{"v":17850,"d":"17,850 лв."}},{"$f":"INDEX(Параметри[],MATCH(Подробности[[#This Row],[ТИП ПРОЕКТ]],Параметри[ТИП ПРОЕКТ],0),MATCH(Подробности[[#Headers],[БИЗНЕС ЮРИСТ]],Параметри[#Headers],0))*INDEX('ПАРАМЕТРИ НА ПРОЕКТИ'!$B$12:$H$12,1,MATCH(Подробности[[#Headers],[БИЗНЕС ЮРИСТ]],Параметри[#Headers],0))*Подробности[[#This Row],[ДЕЙСТВИТЕЛНА РАБОТА]]","v":{"v":6375,"d":"6,375 лв."}},{"$f":"INDEX(Параметри[],MATCH(Подробности[[#This Row],[ТИП ПРОЕКТ]],Параметри[ТИП ПРОЕКТ],0),MATCH(Подробности[[#Headers],[ЗАЩИТНИК ПО ДЕЛО]],Параметри[#Headers],0))*INDEX('ПАРАМЕТРИ НА ПРОЕКТИ'!$B$12:$H$12,1,MATCH(Подробности[[#Headers],[ЗАЩИТНИК ПО ДЕЛО]],Параметри[#Headers],0))*Подробности[[#This Row],[ДЕЙСТВИТЕЛНА РАБОТА]]","v":{"v":30600,"d":"30,600 лв."}},{"$f":"INDEX(Параметри[],MATCH(Подробности[[#This Row],[ТИП ПРОЕКТ]],Параметри[ТИП ПРОЕКТ],0),MATCH(Подробности[[#Headers],[ЮРИСТ ПО ИНТЕЛЕКТУАЛНА СОБСТВЕНОСТ]],Параметри[#Headers],0))*INDEX('ПАРАМЕТРИ НА ПРОЕКТИ'!$B$12:$H$12,1,MATCH(Подробности[[#Headers],[ЮРИСТ ПО ИНТЕЛЕКТУАЛНА СОБСТВЕНОСТ]],Параметри[#Headers],0))*Подробности[[#This Row],[ДЕЙСТВИТЕЛНА РАБОТА]]","v":{"v":0,"d":"0 лв."}},{"$f":"INDEX(Параметри[],MATCH(Подробности[[#This Row],[ТИП ПРОЕКТ]],Параметри[ТИП ПРОЕКТ],0),MATCH(Подробности[[#Headers],[ЮРИСТ ПО НЕСЪСТОЯТЕЛНОСТ]],Параметри[#Headers],0))*INDEX('ПАРАМЕТРИ НА ПРОЕКТИ'!$B$12:$H$12,1,MATCH(Подробности[[#Headers],[ЮРИСТ ПО НЕСЪСТОЯТЕЛНОСТ]],Параметри[#Headers],0))*Подробности[[#This Row],[ДЕЙСТВИТЕЛНА РАБОТА]]","v":{"v":0,"d":"0 лв."}},{"$f":"INDEX(Параметри[],MATCH(Подробности[[#This Row],[ТИП ПРОЕКТ]],Параметри[ТИП ПРОЕКТ],0),MATCH(Подробности[[#Headers],[АДМИНИСТРАТИВЕН ПЕРСОНАЛ]],Параметри[#Headers],0))*INDEX('ПАРАМЕТРИ НА ПРОЕКТИ'!$B$12:$H$12,1,MATCH(Подробности[[#Headers],[АДМИНИСТРАТИВЕН ПЕРСОНАЛ]],Параметри[#Headers],0))*Подробности[[#This Row],[ДЕЙСТВИТЕЛНА РАБОТА]]","v":{"v":9562.5,"d":"9,563 лв."}}]
[null,"ОБЩО",{"$nulls":5},{"$f":"SUBTOTAL(109,Подробности[ОЧАКВАНА РАБОТА])","v":1500},{"$f":"SUBTOTAL(109,Подробности[ДЕЙСТВИТЕЛНА РАБОТА])","v":1510},{"$f":"SUBTOTAL(109,Подробности[ОЧАКВАНА ПРОДЪЛЖИТЕЛНОСТ])","v":190},{"$f":"SUBTOTAL(109,Подробности[ДЕЙСТВИТЕЛНА ПРОДЪЛЖИТЕЛНОСТ])","v":169}]

{"sheet":"ОБЩИ СУМИ ЗА ПРОЕКТИТЕ","index":3,"n_rows":11,"n_cols":16,"rows_kept":11,"merged":[[3,2,3,7],[3,8,3,13],[3,15,14,19]]}
["Получете общи суми за проектите в този работен лист. Име на фирма се актуализира автоматично в клетката вдясно. В клетките в тази колона има полезни инструкции. Натиснете стрелката надолу, за да започнете.",{"$f":"'ПАРАМЕТРИ НА ПРОЕКТИ'!B1","v":"Име на фирма"}]
["Заглавието на този работен лист е в клетката вдясно.",{"$f":"'ПАРАМЕТРИ НА ПРОЕКТИ'!B2","v":"Планиране на проекти за юридически фирми"}]
["Съобщението за поверителност е в клетка вдясно.",{"$f":"'ПАРАМЕТРИ НА ПРОЕКТИ'!B3","v":"Поверително за Име на фирма"}]
["Етикетът \"Очаквани\" е в клетка C4, етикетът \"Действителни\" е в клетка I4, а съветът с информация – в клетка P4.",null,"ОЧАКВАНИ",{"$nulls":5},"ДЕЙСТВИТЕЛНИ",{"$nulls":6},"ИНФОРМАЦИЯ: \nТази обобщена таблица няма да се обновява автоматично.  За да я обновите, изберете я (произволна клетка в обобщената таблица), в раздела ИНСТРУМЕНТИ ЗА ОБОБЩЕНА ТАБЛИЦА | АНАЛИЗИРАНЕ изберете \"Обнови\".  Или натиснете SHIFT + F10, като изберете обобщената таблица, и след това изберете \"Обнови\"."]
["Обобщената таблица, която започва от клетката вдясно, се актуализира автоматично.","ИМЕ НА ПРОЕКТ","ОБЩ ПАРТНЬОР ","БИЗНЕС ","ЗАЩИТНИК ПО ДЕЛО ","ИНТЕЛЕКТУАЛНА СОБСТВЕНОСТ ","НЕСЪСТОЯТЕЛНОСТ ","АДМИНИСТРАТИВЕН ПЕРСОНАЛ ","ОБЩ ПАРТНЬОР  ","БИЗНЕС  ","ЗАЩИТНИК ПО ДЕЛО  ","НЕСЪСТОЯТЕЛНОСТ  ","ИНТЕЛЕКТУАЛНА СОБСТВЕНОСТ  ","АДМИНИСТРАТИВЕН ПЕРСОНАЛ  "]
[null,"Проект 1",{"v":7000,"d":"7,000.00 лв."},{"v":20000,"d":"20,000.00 лв."},{"v":0,"d":"0.00 лв."},{"v":0,"d":"0.00 лв."},{"v":0,"d":"0.00 лв."},{"v":12500,"d":"12,500.00 лв."},{"v":7700,"d":"7,700.00 лв."},{"v":22000,"d":"22,000.00 лв."},{"v":0,"d":"0.00 лв."},{"v":0,"d":"0.00 лв."},{"v":0,"d":"0.00 лв."},{"v":13750,"d":"13,750.00 лв."}]
[null,"Проект 2",{"v":14000,"d":"14,000.00 лв."},{"v":40000,"d":"40,000.00 лв."},{"v":0,"d":"0.00 лв."},{"v":11000,"d":"11,000.00 лв."},{"v":0,"d":"0.00 лв."},{"v":20000,"d":"20,000.00 лв."},{"v":13650,"d":"13,650.00 лв."},{"v":39000,"d":"39,000.00 лв."},{"v":0,"d":"0.00 лв."},{"v":10725,"d":"10,725.00 лв."},{"v":0,"d":"0.00 лв."},{"v":19500,"d":"19,500.00 лв."}]
[null,"Проект 3",{"v":35000,"d":"35,000.00 лв."},{"v":0,"d":"0.00 лв."},{"v":75000,"d":"75,000.00 лв."},{"v":0,"d":"0.00 лв."},{"v":0,"d":"0.00 лв."},{"v":18750,"d":"18,750.00 лв."},{"v":35000,"d":"35,000.00 лв."},{"v":0,"d":"0.00 лв."},{"v":75000,"d":"75,000.00 лв."},{"v":0,"d":"0.00 лв."},{"v":0,"d":"0.00 лв."},{"v":18750,"d":"18,750.00 лв."}]
[null,"Проект 4",{"v":5250,"d":"5,250.00 лв."},{"v":0,"d":"0.00 лв."},{"v":0,"d":"0.00 лв."},{"v":24750,"d":"24,750.00 лв."},{"v":0,"d":"0.00 лв."},{"v":5625,"d":"5,625.00 лв."},{"v":5075,"d":"5,075.00 лв."},{"v":0,"d":"0.00 лв."},{"v":0,"d":"0.00 лв."},{"v":23925,"d":"23,925.00 лв."},{"v":0,"d":"0.00 лв."},{"v":5437.5,"d":"5,437.50 лв."}]
[null,"Проект 5",{"v":17500,"d":"17,500.00 лв."},{"v":6250,"d":"6,250.00 лв."},{"v":30000,"d":"30,000.00 лв."},{"v":0,"d":"0.00 лв."},{"v":0,"d":"0.00 лв."},{"v":9375,"d":"9,375.00 лв."},{"v":17850,"d":"17,850.00 лв."},{"v":6375,"d":"6,375.00 лв."},{"v":30600,"d":"30,600.00 лв."},{"v":0,"d":"0.00 лв."},{"v":0,"d":"0.00 лв."},{"v":9562.5,"d":"9,562.50 лв."}]
[null,"Обща сума",{"v":78750,"d":"78,750.00 лв."},{"v":66250,"d":"66,250.00 лв."},{"v":105000,"d":"105,000.00 лв."},{"v":35750,"d":"35,750.00 лв."},{"v":0,"d":"0.00 лв."},{"v":66250,"d":"66,250.00 лв."},{"v":79275,"d":"79,275.00 лв."},{"v":67375,"d":"67,375.00 лв."},{"v":105600,"d":"105,600.00 лв."},{"v":34650,"d":"34,650.00 лв."},{"v":0,"d":"0.00 лв."},{"v":67000,"d":"67,000.00 лв."}]